Cogmind - Beta 14 @@@ ROGUE MODE // 2025.03.31 @ 14:51:18 Player: IA-Sg3M Result: Destroyed by Autobeam Turret with Autobeam Performance ------------- Evolutions (0) 0 Regions Visited (2) 400 Robots Destroyed (39) 195 Value Destroyed (909) 909 Prototype IDs (13) 260 Alien Tech Used (0) 0 Bonus (0) 0 TOTAL SCORE: 1764 Bonus ------- None Cogmind --------- Core Integrity 0/250 Matter 240/300 Energy 200/200 System Corruption 2% Temperature Cool (6) Movement Rolling (120) Ox1 Location -10/Subcaves Parts ------- > --- POWER (1) -------- Subdweller Power Source > --- PROPULSION (2) --- Subdweller Monowheel Subdweller Monowheel > --- UTILITY (2) ------ High-capacity Storage Unit Medium Armor Plating > --- WEAPON (2) ------- Subdweller Shrapnel Launcher Enhanced Flamer > --- INVENTORY (20) --- Ion Engine Wheel Compact Wheel Heat Sink Disposable Heat Sink Improved Terrain Scanner Seismic Detector Medium Armor Plating Medium Armor Plating Medium Armor Plating Scrap Shield Tower Shield Hacking Suite Power Bank Spread Laser Subdweller Beam Cannon Subdweller Machine Gun Subdweller Machine Gun Peak State ------------ > --- POWER ------------ Subdweller Power Source > --- PROPULSION ------- Subdweller Monowheel Subdweller Monowheel > --- UTILITY ---------- High-capacity Storage Unit Medium Armor Plating > --- WEAPON ----------- Subdweller Machine Gun Enhanced Flamer > --- INVENTORY -------- Ion Engine Wheel Compact Wheel Heat Sink Disposable Heat Sink Improved Terrain Scanner Seismic Detector Medium Armor Plating Medium Armor Plating Medium Armor Plating Scrap Shield Tower Shield Hacking Suite Power Bank Spread Laser Subdweller Beam Cannon Subdweller Machine Gun Subdweller Shrapnel Launcher [Rating: 20] Favorites ----------- Power Ion Engine Engine Ion Engine Propulsion Compact Wheel Treads Light Treads Wheel Compact Wheel Utility Seismic Detector Device Seismic Detector Storage High-capacity Storage Unit Protection Core Shielding Weapon Spread Laser Energy Gun Spread Laser Energy Cannon Subdweller Beam Cannon Ballistic Gun Subdweller Machine Gun Launcher Subdweller Shrapnel Launcher Special Weapon Mining Laser Build | -11 -10 -10 ------- Run | Yrd Mat Sub Slots Evolved . | . . . Power . | . . . Propulsion . | . . . Utility . | . . . Weapon . | . . . Parts Attached 37 | 9 11 17 Power 3 | 1 1 1 Engine 3 | 1 1 1 Core . | . . . Reactor . | . . . Propulsion 12 | 3 3 6 Treads 3 | 1 1 1 Leg . | . . . Wheel 9 | 2 2 5 Hover . | . . . Flight . | . . . Utility 7 | 3 2 2 Device 2 | 2 . . Storage 3 | 1 2 . Processor . | . . . Hackware . | . . . Protection 2 | . . 2 Artifact . | . . . Weapon 15 | 2 5 8 Energy Gun 6 | 1 4 1 Energy Cannon 1 | . . 1 Ballistic Gun 4 | 1 . 3 Ballistic Cannon . | . . . Launcher 1 | . . 1 Special Weapon 3 | . 1 2 Impact Weapon . | . . . Slashing Weapon . | . . . Piercing Weapon . | . . . Special Melee Weapon . | . . . Unidentified Prototypes . | . . . Parts Lost 4 | . 1 3 Power 2 | . 1 1 Propulsion 2 | . . 2 Utility . | . . . Weapon . | . . . Highest Loss Streak 3 | . 1 3 To Critical Strikes . | . . . Average Slot Usage (%) 95 | . 94 97 Engine 10 | . 8 12 Treads 4 | . 8 . Wheel 23 | . 19 27 Device 10 | . 14 6 Storage 14 | . 14 14 Protection 3 | . . 7 Energy Gun 17 | . 26 8 Energy Cannon 1 | . . 2 Ballistic Gun 3 | . . 7 Special Weapon 5 | . . 10 Peak Build Rating 20 | 9 11 20 Average Rating 11 | 5 9 13 On Entrance 5 | . 7 10 Naked Turns . | . . . Heaviest Build 58 | 14 52 58 Greatest Support 40 | 32 32 40 Greatest Overweight (x) 3 | . 2 3 Average Overweight (x) . | . 1 1 Largest Inventory Capacity 20 | 8 20 20 Average Capacity 17 | 7 15 20 Most Carried 20 | 6 19 20 Average Carried 15 | 3 12 19 Final Capacity 20 | 8 20 20 Final Carried 20 | 6 19 20 Class Distribution -------------------- 100% | Mutant Dominant Class ---------------- Mutant | -10/Materials Mutant | -10/Subcaves Resources | -11 -10 -10 ----------- Run | Yrd Mat Sub Matter Collected 718 | 303 136 279 Remotely . | . . . Salvage Created 980 | 62 687 231 Parts 73 | 3 50 20 Haulers Intercepted 2 | . 2 . Recyclers Shooed 2 | 1 1 . Parts Field Recycled . | . . . Retrieved Matter . | . . . Parts Self-Destructed 9 | . . 9 Prevented . | . . . Kills | -11 -10 -10 ------- Run | Yrd Mat Sub Combat Hostiles Destroyed 26 | . 17 9 Melee 1 | . 1 . Guns 23 | . 16 7 Cannons 2 | . . 2 Classes Destroyed 10 | 1 7 2 Builder 1 | . 1 . Tunneler 4 | 3 1 . Hauler 2 | . 2 . Recycler 1 | . 1 . Operator 2 | . 2 . Turret 1 | . . 1 Watcher 2 | . 2 . Swarmer 7 | . 3 4 Grunt 14 | . 14 . Subdweller 5 | . . 5 Best Kill Streak 5 | 2 5 4 Combat Bots Only 5 | . 5 4 Max Kills in Single Turn 1 | 1 1 1 Gunslinging . | . . . Exploded . | . . . Melee 1 | . 1 . Uniques/NPCs Destroyed . | . . . Combat | -11 -10 -10 -------- Run | Yrd Mat Sub Hostile Shots Fired 105 | . 45 60 Missed 21 | . 11 10 Damage Taken 1231 | . 449 782 Core 257 | . 92 165 Absorbed by Shields . | . . . Redirected to Shielding 31 | . . 31 Regen/Repaired (Parts) 71 | . 71 . Core Remaining (%) 100 | 100 . . Volleys Fired 122 | 13 58 51 Largest 2 | 2 2 2 Hottest 130 | 70 130 110 Shots Fired 207 | 26 102 79 Gun 161 | 26 90 45 Cannon 11 | . . 11 Launcher 2 | . . 2 Special 33 | . 12 21 Kinetic 45 | 13 1 31 Thermal 162 | 13 101 48 Explosive . | . . . Electromagnetic . | . . . Robot Hit Streak 18 | 5 11 18 Robot Miss Streak 8 | 3 8 5 Penetration Max . | . . . Secondary Targets . | . . . Shots Hit Robots 139 | 15 82 42 Core Hits 150 | 5 111 34 Critical Kills . | . . . Critical Parts Destroyed . | . . . Critical Strikes 1 | 1 . . Burn 1 | 1 . . Melee Attacks . | . . . Impact . | . . . Slashing . | . . . Piercing . | . . . Sneak Attacks . | . . . Combat Hostiles . | . . . Follow-up Attacks . | . . . Damage Inflicted 1946 | 159 1019 768 Guns 1740 | 159 1003 578 Cannons 161 | . . 161 Explosions 17 | . . 17 Melee . | . . . Ramming 16 | . 16 . Kinetic 362 | 58 8 296 Thermal 1568 | 101 995 472 Explosive . | . . . Electromagnetic . | . . . Impact . | . . . Slashing . | . . . Piercing . | . . . Highest Corruption 2 | . 2 2 Average Corruption 1 | . 1 2 Corruption Purged . | . . . Corruption Blocked . | . . . Effects 44 | . 20 24 Message Errors 6 | . 4 2 Matter Fused 12 | . 3 9 Heat Flow Errors 8 | . 5 3 Energy Discharges 6 | . 1 5 Data Loss (minor) 3 | . 1 2 Data Loss (major) 4 | . 1 3 Misfires 1 | . 1 . Alerts 2 | . 2 . Weapon Failures 2 | . 2 . Overload Shots . | . . . Overflow Damage . | . . . Projectiles . | . . . Explosions . | . . . Melee . | . . . Knockbacks . | . . . Impact . | . . . Kinetic . | . . . Secondary . | . . . Self-Inflicted Damage . | . . . Shots . | . . . Rammed 8 | . 8 . Targets Rammed 8 | . 8 . Kicked . | . . . Crushed . | . . . Highest Temperature 467 | 110 467 239 Average Temperature 111 | 45 120 84 Received Heat Transfer 252 | . 210 42 Effects 5 | . 4 1 Shutdowns 1 | . 1 . Energy Bleed 1 | . 1 . Interference 1 | . . 1 Matter Decay 1 | . 1 . Short Circuit 1 | . 1 . Siege Activations . | . . . Robots Corrupted . | . . . Combat Hostiles . | . . . Parts Fried . | . . . Impact Corruptions . | . . . Robots Melted . | . . . Combat Hostiles . | . . . Parts Melted 4 | 4 . . Heat Transferred 2314 | 370 1277 667 Parts Sabotaged . | . . . Parts Stolen . | . . . Parts Stripped . | . . . Power Chain Reactions . | . . . Alert | -11 -10 -10 ------- Run | Yrd Mat Sub Peak Influence 291 | 15 291 . Initial 9 | . 9 . Average 137 | 3 149 . Maximum Alert Level 1 | . 1 . Low Security (%) 67 | 100 64 . Level 1 32 | . 35 . Level 2 . | . . . Level 3 . | . . . Level 4 . | . . . Level 5 . | . . . High Security . | . . . Max Security . | . . . Squads Dispatched 5 | . 5 . Investigation 4 | . 4 . Extermination . | . . . Reinforcement 1 | . 1 . Assault . | . . . Garrison . | . . . Intercept . | . . . Searches Triggered . | . . . Construction Impeded . | . . . Haulers Reinforced . | . . . Active Scanning Responses . | . . . Cargo Convoy Interrupts . | . . . Stealth | -11 -10 -10 --------- Run | Yrd Mat Sub Distress Signals 1 | . 1 . Communications Jammed . | . . . Distress Signals . | . . . Times Spotted 35 | . 24 11 Peak Tracking Total 6 | . 3 6 Tactical Retreats 1 | . . 1 Traps | -11 -10 -10 ------- Run | Yrd Mat Sub Traps Triggered 5 | . 3 2 Indirectly . | . . . Trap Hack Attempts . | . . . Triggered . | . . . Disarmed . | . . . Reprogrammed . | . . . Reused . | . . . Traps Extracted . | . . . Installed . | . . . Triggered . | . . . Machines | -11 -10 -10 ---------- Run | Yrd Mat Sub Machines Disabled 3 | . . 3 Max in Single Turn 1 | . . 1 Machines Repaired . | . . . Machines Dismantled . | . . . Machines Sabotaged . | . . . Overloaded Fab Kills . | . . . Hacking | -11 -10 -10 --------- Run | Yrd Mat Sub Machines Accessed 11 | . 9 2 Terminals 6 | . 6 . Fabricators . | . . . Repair Stations 1 | . 1 . Recycling Units 2 | . 2 . Scanalyzers . | . . . Garrison Access . | . . . Total Hacks 28 | . 25 3 Successful 17 | . 14 3 Failed 11 | . 11 . Catastrophic 3 | . 3 . Database Lockouts . | . . . Manual 11 | . 11 . Terminals 18 | . 18 . Fabricators . | . . . Repair Stations 3 | . 3 . Recycling Units 4 | . 4 . Scanalyzers . | . . . Garrison Access . | . . . Terminal Hacks 10 | . 7 3 Record 2 | . . 2 Robot Analysis 1 | . 1 . Prototype ID Bank 2 | . 2 . Branch Access Points 1 | . 1 . Registered Components 1 | . 1 . Zone Layout 2 | . 2 . Derelict Proto ID Bank 1 | . . 1 Fabricator Hacks . | . . . Repair Station Hacks 2 | . 2 . Scan Component 1 | . 1 . Repair 1 | . 1 . Recycling Unit Hacks 1 | . 1 . Report Inventory 1 | . 1 . Scanalyzer . | . . . Garrison Access Hacks . | . . . Unauthorized Hacks 4 | . 4 . Terminals 2 | . 2 . Track 2 | . 2 . Fabricators . | . . . Repair Stations . | . . . Recycling Units 2 | . 2 . Tunnel 2 | . 2 . Scanalyzers . | . . . Garrison Access . | . . . Data Cores Recovered . | . . . Used . | . . . Hacking Detections 8 | . 8 . Full Trace Events 3 | . 3 . Feedback Events 1 | . 1 . Corruption 1 | . 1 . Feedback Blocked . | . . . Robot Schematics Acquired . | . . . Robots Built . | . . . Authchips . | . . . Time . | . . . Total Robot Build Rating . | . . . Part Schematics Acquired . | . . . Parts Built . | . . . Authchips . | . . . Time . | . . . Total Part Build Rating . | . . . Parts Repaired 1 | . 1 . Time 32 | . 32 . Parts Recycled . | . . . Recycled Matter . | . . . Retrieved Matter . | . . . Retrieved Components . | . . . Parts Scanalyzed . | . . . Part Schematics Acquired . | . . . Parts Damaged . | . . . Bothacking | -11 -10 -10 ------------ Run | Yrd Mat Sub Used RIF Installer . | . . . Robots Hacked . | . . . Non-combat . | . . . Combat . | . . . Robot Hacks Applied . | . . . Relay Couplers Released . | . . . Fabnet Peak Effective % . | . . . Robots Rewired 1 | . . 1 Allies Hacked . | . . . Hacks Repelled . | . . . Allies | -11 -10 -10 -------- Run | Yrd Mat Sub Total Allies 1 | . . 1 Largest Group 1 | . . 1 Highest-Rated Group 19 | . . 19 Highest-Rated Ally 19 | . . 19 Total Orders 1 | . . 1 ROAM 1 | . . 1 Ally Attacks 4 | . . 4 Total Damage 57 | . . 57 Kills . | . . . Allies Corrupted . | . . . Allies Melted . | . . . Intel | -11 -10 -10 ------- Run | Yrd Mat Sub Robot Analysis Total 1 | . 1 . Derelict Logs Recovered 1 | . . 1 Drone Launches . | . . . Drone Recoveries . | . . . Exploration | -11 -10 -10 ------------- Run | Yrd Mat Sub Turns Passed 2743 | 124 1340 1279 Spaces Moved 1739 | 70 791 878 Core 3 | 3 . . Treads 67 | . 62 5 Legs . | . . . Wheels 1669 | 67 729 873 Hover . | . . . Flight . | . . . Fastest Speed 50 | 50 100 115 Average Speed 119 | 97 123 118 Slowest Speed 320 | 100 240 320 Overloaded Moves . | . . . Propulsion Burnouts . | . . . Robots Hopped . | . . . Cave-ins Triggered . | . . . Exploration Rate (%) 42 | 5 84 38 Regions Visited 2 Branch Regions 1 Pre-discovered Areas 2 | . 2 . Known Exits Taken . | . . . Unknown Exits Taken 2 | 1 1 . Scrap Searched 5 | . . 5 Spaces Dug 20 | . 2 18 Terrain Destroyed 36 | . 5 31 Melee . | . . . Projectile 8 | . 5 3 AOE 28 | . . 28 Terrain Rammed . | . . . Walls Destroyed . | . . . Machines Disabled . | . . . Actions | -11 -10 -10 --------- Run | Yrd Mat Sub Total 2123 | 97 1024 1002 Wait 155 | . 128 27 Move 1737 | 69 790 878 Hop . | . . . Pick Up 29 | 6 16 7 Fast Attach 20 | 7 5 8 Attach 1 | . . 1 Detach 4 | . 3 1 Swap 16 | 2 6 8 Drop 24 | . 10 14 Fire 122 | 13 58 51 Melee . | . . . Ram . | . . . Kick . | . . . Crush 8 | . 8 . Escape Stasis . | . . . Rewire 7 | . . 7 Trap . | . . . Miscellaneous . | . . . Route ------- -11/Scrapyard -10/Materials (discovered 5 exits: [*Mat x2] / *Min x2 / *Sub) -10/Subcaves (discovered 1 exit: Mat) History --------- Turn | Location | Event 5 | -11/Scrapyard | Discovered new exit (range 16) 125 | -11/Scrapyard | Entered Materials 308 | -10/Materials | Build established: Mutant 401 | -10/Materials | Discovered new exit (range 10) 908 | -10/Materials | Discovered new exit (range 14) 1129 | -10/Materials | Discovered new exit (range 16) 1248 | -10/Materials | Identified exit to Mines 1317 | -10/Materials | Repaired Spread Laser 1337 | -10/Materials | Discovered new exit (range 15) 1462 | -10/Materials | Discovered new exit (range 3) 1465 | -10/Materials | Entered Subcaves 1874 | -10/Subcaves | Visited 4L-MR0's lab 1888 | -10/Subcaves | Found Tower Shield 1973 | -10/Subcaves | Visited Clippyterm 1977 | -10/Subcaves | Learned Factory fabricator intel 2081 | -10/Subcaves | Identified exit to Materials 2087 | -10/Subcaves | A Subdweller sparked back to life 2087 | -10/Subcaves | A Subdweller sparked back to life 2087 | -10/Subcaves | A Subdweller sparked back to life 2103 | -10/Subcaves | Core integrity fell below 50% 2140 | -10/Subcaves | Found Power Bank 2142 | -10/Subcaves | Lost 3 parts (1p2n) 2228 | -10/Subcaves | Disturbed a concealed Subdweller 2234 | -10/Subcaves | Core integrity fell below 20% 2561 | -10/Subcaves | Ambushed by Subdweller buried in earth 2744 | -10/Subcaves | Destroyed by Autobeam Turret with Autobeam Last Messages --------------- 02526_ Searching scrap... 02526_ Found Enh. Flamer. 02526_ Found 49 Matter. 02528_ Dropped Mining Laser. 02530_ Acquired 10 matter. 02546_ System corrupted: Energy discharge (-54). 02561_ Triggered Shrapnel Trap. 02561_ An expanding cloud of shrapnel blasts out in all directions. 02562_ OI-W1F(R): "HIDIE!" 02562_ OI-W1F(R) shuts down. 02564_ 09-O1W(u) builds Twisted Machinery. 02566_ Attempting to rewire OI-W1F(R). 02566_ 09-O1W(u) builds Twisted Machinery. 02567_ Attempting to rewire OI-W1F(R). 02572_ OI-W1F(R) rewired. 02659_ System corrupted: Heat flow error (+142). 02681_ OI-W1F(R) destroyed. 02684_ System corrupted: Matter fused (-8). 02744_ Machine disabled. 02744_ Autobeam Turret destroyed. Map ----- +----------------------------------------------------+ | ?????????????????????????#"""### ##???? | | ?????????????????????????#"" ## # ## ##??? | | ?????????????????????????#"X # # #### | | ?????????????????????????#"" ## # | | ?????????????????????????#"""## [% ## | | ?????????????????????????###### & % ## | | ????????????????????????????# " %% # | | ??????????????????????????????# #" # | | ??????????????????????????????# #### # | | ??????????????????????????????# # #### # | | ????????????????#######???????# ## ## | | ????????????????#" [&=#???????## ## ### | | ????????????????#%&##[#????????#### #?## | | ????????????????####! ###???????? ??## ## | | ????????????????###" ## ######## ??### ## | | ????????????????# ##[## #; ;;;# % ???????# ## | | ????????######??# " "# ; [t??????## | | #???????#%|%"##?# # "???????# | | ##??????##"%&!#?# ????????# | | #???????####=#?# ;;;#????????## | | #???????# "#?## &## ## #????????## | | #??####### ###??###%#####; ???######## | | ##### " "##???# ! ## ;#????# ## | | #### # #????# | | ## #????### | | # ## ##@ ##??????## | | ##### ####### ###?????#### ### | | ????# ####### #??????## ## ### | | ????# # ######## ### ##?? | | ????# #?# ##?## | | ????# ##### ####?###??# | | ????## ####???##### ###### #?????????# | | ?????####??????????#####????## #####??????# | | ?????????????????????????????# #### ######?# | | ?????????????????????????????# ##??## ### | | ?????????????????????????????# #????# | | ?????????????????????????????# #????# | | ?????????????????????????????# #????# | | ?????????????????????????????# ???# ## | | ?????????????????????????????# # ##### | | ?????????????????????????????#### ???## | | ????????????????????????????????## ###???### # | | ?????????????????????????????????## ##???????### | | ??????????????????????????????????####???????????? | | ?????????????????????????????????????????????????? | | ?????????????????????????????????????????????????? | | ?????????????????????????????????????????????????? | | ?????????????????????????????????????????????????? | | ?????????????????????????????????????????????????? | | ?????????????????????????????????????????????????? | +----------------------------------------------------+ Best States ------------- Heat Dissipation 25 Energy Generation 15 Energy Capacity 250 Matter Stores 300 Matter Capacity 300 Sight Range 16 Terrain Scan Range 16 Terrain Scan Density 10 Armor Coverage 225 Core Shielding 20 Evasion (%) 40 Recoil Reduction 1 Item Schematics ----------------- None Robot Schematics ------------------ None Fabricated ------------ Nothing Alien Tech Used ----------------- None Achievements -------------- None Challenges ------------ None Game ------ Seed InsulationBladeComputer Manual? 0 Play Time 00:16:36 Cumulative 151.9 hours Start 2025.03.31 @ 14:32:08 End 2025.03.31 @ 14:51:18 Sessions 1 Manual Loads 0 Difficulty Rogue Special Mode None Game No. 165 Rogue 165 Adventurer 0 Explorer 0 Win Type - Total 2 Types 2/0/0/0/0/0/0/0/0 Lore% 57 Gallery% 67 Achievement% 59 Wizard Run 0 Options --------- Layout 0 ASCII 0 Keyboard 1 Movement Numpad Keybinds 0 Fullscreen 2 Font 18/Smallcaps Map View 76x50 Zoom Use 2% Tactical HUD 1 Map Filters NONE Filters NONE Steam 1 RUN: adc72dc0-c489-4eca-b362-dc9a635b4413